bitfinex/quotes_SOLUSD_20240725
["timestamp","ask_amount","ask_price","bid_price","bid_amount"]
[1721919662393,21.7536949,171.83,171.77,5.8216]
[1721919662558,15.9339949,171.83,171.76,14.5544]
[1721919662755,21.7536949,171.83,171.76,14.5544]
[1721919662960,21.7536949,171.83,171.75,5.8223]
[1721919662961,15.9339949,171.83,171.75,5.8223]
[1721919663264,5.8201,171.82,171.73,14.5575]
[1721919663461,5.8201,171.82,171.75,5.8223]
[1721919663760,65.0,171.81,171.69,14.5603]
[1721919664066,65.0,171.81,171.71,14.5588]
[1721919664268,5.8209,171.8,171.71,14.5588]
[1721919664465,45.0,171.79,171.74,14.5565]
[1721919664669,5.8207,171.8,171.74,20.3789]
[1721919664878,45.0,171.79,171.74,20.3789]
[1721919665047,45.0,171.79,171.74,14.5565]
[1721919665251,45.0,171.79,171.77,5.8215]
[1721919665482,15.9339949,171.83,171.77,5.8215]
[1721919665771,45.0,171.82,171.76,14.5546]
[1721919665988,15.9339949,171.83,171.76,14.5546]
[1721919665989,15.9339949,171.83,171.78,5.8213]
[1721919666152,0.7987949,171.83,171.79,14.5522]
[1721919666470,0.7987949,171.83,171.79,20.3732]
[1721919666645,0.7987949,171.83,171.8,5.8206]
[1721919667150,0.7987949,171.83,171.71,6.6422]
[1721919667350,5.8204,171.81,171.73,14.557]
[1721919667550,5.8204,171.81,171.71,6.6422]
[1721919667551,29.32,171.82,171.71,6.6422]
[1721919667775,29.32,171.82,171.72,5.8234]
[1721919667776,5.8214,171.78,171.72,5.8234]
[1721919667957,5.8214,171.78,171.71,5.8236]
[1721919668160,5.8211,171.79,171.72,5.8233]
[1721919668372,45.0,171.78,171.72,5.8233]
[1721919668552,45.0,171.78,171.73,5.8229]
[1721919668747,5.8207,171.8,171.73,5.8229]
[1721919668748,45.0,171.79,171.73,5.8229]
[1721919668996,45.0,171.79,171.74,5.8226]
[1721919669159,45.0,171.79,171.72,20.3811]
[1721919669359,45.0,171.79,171.74,14.5561]
[1721919669563,0.7987949,171.83,171.74,14.5561]
[1721919669774,6.6184949,171.83,171.76,5.822]
[1721919670073,6.6184949,171.83,171.71,1.1643586]
[1721919670074,0.7987949,171.83,171.71,1.1643586]
[1721919670293,0.7987949,171.83,171.77,6.3712]
[1721919670494,0.7987949,171.83,171.79,5.8209]
[1721919671665,0.7987949,171.83,171.78,20.3741]
[1721919671864,0.7987949,171.83,171.75,14.5557]
[1721919672064,5.8203,171.82,171.75,20.3778]
[1721919672292,0.7987949,171.83,171.77,5.8214]
[1721919672560,0.7987949,171.83,171.77,14.5538]
[1721919672775,0.7987949,171.83,171.78,5.8213]
[1721919673290,0.7987949,171.83,171.77,20.3754]
[1721919673469,0.7987949,171.83,171.78,5.8213]
[1721919673663,0.7987949,171.83,171.77,14.5538]
[1721919673860,0.7987949,171.83,171.74,14.5567]
[1721919674170,5.82,171.82,171.76,5.822]
[1721919674370,45.0,171.81,171.78,5.8213]
[1721919674566,0.7987949,171.83,171.77,5.8216]
[1721919674781,45.7987949,171.83,171.78,5.8213]
[1721919675091,45.7987949,171.83,171.78,5.8211]
[1721919675391,45.0,171.82,171.78,5.8211]
[1721919675688,0.7987949,171.83,171.76,20.3761]
[1721919676187,0.7987949,171.83,171.74,29.1127]
[1721919676387,0.7987949,171.83,171.76,5.822]
[1721919676579,0.7987949,171.83,171.73,14.5574]
[1721919676580,5.8206,171.81,171.73,14.5574]
[1721919676792,0.7987949,171.83,171.77,5.8215]
[1721919677091,0.7987949,171.83,171.79,14.5522]
[1721919677296,0.7987949,171.83,171.75,1.16419404]
[1721919677476,0.7987949,171.83,171.74,30.27684594]
[1721919677676,6.6184949,171.83,171.74,29.1128]
[1721919677886,0.7987949,171.83,171.78,5.8213]
[1721919678187,0.7987949,171.83,171.8,5.8206]
[1721919679772,0.7987949,171.83,171.79,14.5522]
[1721919679975,0.7987949,171.83,171.79,20.3731]
[1721919680171,0.7987949,171.83,171.82,20.3701]
[1721919680379,0.7987949,171.83,171.82,14.5501]
[1721919680582,0.7987949,171.83,171.79,20.3732]
[1721919680789,0.7987949,171.83,171.79,14.5524]
[1721919681097,0.7987949,171.83,171.8,5.8206]
[1721919681601,0.7987949,171.83,171.76,14.5549]
[1721919681985,0.7987949,171.83,171.79,5.821]
[1721919682504,0.7987949,171.83,171.8,5.8206]
[1721919682907,0.7987949,171.83,171.78,20.3742]
[1721919683081,5.8201,171.82,171.74,14.556]
[1721919683283,5.8207,171.8,171.74,14.556]
[1721919683510,45.0,171.79,171.71,21.97953652]
[1721919683697,61.0528,171.81,171.71,14.5591]
[1721919684187,5.8213,171.79,171.71,14.5591]
[1721919684504,61.0528,171.81,171.73,14.557]
[1721919684505,45.0,171.78,171.73,14.557]
[1721919684714,45.0,171.78,171.75,5.8223]
[1721919684881,16.0528,171.81,171.75,5.8223]
[1721919685090,45.0,171.8,171.76,5.822]
[1721919685504,45.0,171.8,171.77,5.8217]
[1721919685705,0.7987949,171.83,171.74,29.1128]
[1721919686011,0.7987949,171.83,171.79,5.8207]
[1721919686190,0.7987949,171.83,171.78,5.8213]
[1721919686389,0.7987949,171.83,171.8,5.8206]
[1721919686718,0.7987949,171.83,171.73,14.5569]
[1721919686883,5.8214,171.78,171.66,44.7979]
[1721919687083,0.7987949,171.83,171.67,6.0222]
[1721919687307,0.7987949,171.83,171.7,5.8241]
[1721919687308,0.23296,171.71,171.7,5.8241]
[1721919687812,0.23296,171.71,171.69,20.3846]
[1721919688023,0.23296,171.71,171.7,5.8241]
[1721919692513,0.23296,171.71,171.66,14.5634]
[1721919692687,0.23296,171.71,171.65,1.16489528]
[1721919692895,0.23296,171.71,171.66,29.1263]
[1721919693089,0.23296,171.71,171.68,5.8247]
[1721919693303,0.23296,171.71,171.63,6.3179]
[1721919693490,0.23296,171.71,171.67,5.8251]
[1721919693713,0.23296,171.71,171.68,5.8247]
[1721919694027,0.23296,171.71,171.7,5.8241]
[1721919694202,0.23296,171.71,171.69,14.5604]
[1721919694203,0.23296,171.71,171.63,6.3179]
[1721919694533,0.23296,171.71,171.64,5.826]
[1721919694825,45.8445,171.7,171.59,6.5896]
[1721919694998,52.0031,171.7,171.58,14.5699]
[1721919695197,5.8257,171.66,171.59,5.8277]
[1721919695428,45.0,171.65,171.6,5.8273]
[1721919695654,45.0,171.65,171.61,5.8271]
[1721919695837,50.8254,171.66,171.6,5.8274]
[1721919696040,45.0,171.66,171.58,14.5699]
[1721919696254,5.8261,171.64,171.56,5.8285]
[1721919696436,45.0,171.63,171.55,6.1484]
[1721919696738,74.35,171.67,171.57,14.571]
[1721919697264,20.0,171.66,171.57,14.571]
[1721919697443,45.0,171.65,171.56,5.8288]
[1721919697630,5.8261,171.64,171.55,6.1484]
[1721919697953,45.0,171.63,171.55,6.1484]
[1721919698328,45.0,171.63,171.58,5.8281]
[1721919698528,45.0,171.64,171.58,5.8281]
[1721919698748,50.8262,171.64,171.57,14.571]
[1721919698953,74.35,171.64,171.51,6.6006]
[1721919699155,5.8273,171.61,171.53,5.8295]
[1721919699354,45.0,171.6,171.51,21.1762]
[1721919699729,45.0,171.6,171.54,5.8294]
[1721919699936,45.0,171.6,171.53,5.8298]
[1721919700130,50.8278,171.6,171.52,5.8302]
[1721919700337,74.35,171.6,171.51,14.5756]
[1721919700541,74.35,171.6,171.51,20.4061]
[1721919700973,5.8278,171.59,171.51,20.4061]
[1721919701149,45.0,171.58,171.54,5.8295]
[1721919701348,74.35,171.6,171.53,5.8295]
[1721919701542,80.1775,171.6,171.51,14.5756]
[1721919701743,5.8278,171.59,171.52,5.8299]
[1721919701939,45.0,171.58,171.53,5.8297]
[1721919702249,29.35,171.63,171.52,1.16584085]
[1721919702450,2.48730099,171.64,171.58,14.5696]
[1721919702659,2.48730099,171.64,171.52,1.16584085]
[1721919702660,5.8267,171.63,171.55,5.829]
[1721919702867,22.1957,171.65,171.58,5.8281]
[1721919703264,18.79904519,171.65,171.59,5.8278]
[1721919703459,18.79904519,171.65,171.57,14.5712]
[1721919703659,5.8262,171.64,171.57,20.3995]
[1721919703959,18.79904519,171.65,171.57,14.5712]
[1721919704169,5.8264,171.64,171.57,5.8284]
[1721919704547,45.0,171.63,171.57,5.8284]
[1721919705174,45.0,171.63,171.57,14.5713]
[1721919705374,45.0,171.64,171.57,14.5713]
[1721919705553,16.3699,171.65,171.59,20.3965]
[1721919705755,6.1559,171.68,171.64,5.8261]
[1721919705949,5.8249,171.68,171.62,14.5662]
[1721919706261,46.98778144,171.69,171.6,5.8273]
[1721919706463,46.98778144,171.69,171.59,20.397]
[1721919706782,46.98778144,171.69,171.57,6.1565]
[1721919707079,52.81228144,171.69,171.62,5.8268]
[1721919707372,17.63778144,171.69,171.63,5.8264]
[1721919707578,15.2441,171.69,171.63,5.8264]
[1721919707750,0.23296,171.71,171.67,5.825]
[1721919707955,0.23296,171.71,171.68,5.8245]
[1721919708161,0.23296,171.71,171.66,5.8253]
[1721919708362,0.23296,171.71,171.63,14.566]
[1721919708688,0.23296,171.71,171.65,14.5638]
[1721919709055,0.23296,171.71,171.67,5.825]
[1721919709257,0.23296,171.71,171.66,5.8253]
[1721919709553,5.8244,171.7,171.63,5.8261]
[1721919709956,0.23296,171.71,171.62,14.5669]
[1721919710261,71.05676,171.71,171.65,5.8257]
[1721919710460,65.23296,171.71,171.65,5.8257]
[1721919710656,0.23296,171.71,171.66,14.5629]
[1721919710862,0.23296,171.71,171.67,5.8248]
[1721919711479,0.23296,171.71,171.63,20.392]
[1721919711677,0.23296,171.71,171.65,14.5638]
[1721919711883,0.23296,171.71,171.67,5.8249]
[1721919712188,0.23296,171.71,171.68,15.72671029]
[1721919712486,0.23296,171.71,171.69,5.8243]
[1721919712668,0.23296,171.71,171.68,14.5619]
[1721919713067,0.23296,171.71,171.67,5.8248]
[1721919713289,0.23296,171.71,171.66,5.8252]
[1721919713857,0.23296,171.71,171.65,14.5643]
[1721919713858,0.23296,171.71,171.68,5.8246]
[1721919714058,0.23296,171.71,171.67,20.387]
[1721919714760,0.23296,171.71,171.68,1.16481284]
[1721919714960,0.23296,171.71,171.6,29.1365]
[1721919714961,0.23296,171.71,171.61,21.16481284]
[1721919715193,0.23296,171.71,171.69,5.8244]
[1721919715682,0.23296,171.71,171.67,14.5623]
[1721919715858,0.23296,171.71,171.68,5.8245]
[1721919716066,0.23296,171.71,171.67,20.3873]
[1721919716459,0.23296,171.71,171.67,14.5623]
[1721919716968,0.23296,171.71,171.67,20.3873]
[1721919717285,0.23296,171.71,171.68,5.8246]
[1721919717674,0.23296,171.71,171.7,20.3843]
[1721919719482,0.23296,171.71,171.68,5.8245]
[1721919719686,0.23296,171.71,171.67,15.72745606]
[1721919719879,0.23296,171.71,171.7,5.8241]
[1721919720959,0.23296,171.71,171.69,20.3849]
[1721919721155,0.23296,171.71,171.66,6.4869]
[1721919721156,0.23296,171.71,171.67,5.8249]
[1721919721575,0.23296,171.71,171.66,21.0501]
[1721919721885,0.23296,171.71,171.68,14.5614]
[1721919722092,0.23296,171.71,171.69,5.8243]
[1721919722266,0.23296,171.71,171.68,20.3861]
[1721919722467,0.23296,171.71,171.7,5.8241]
[1721919723366,0.23296,171.71,171.69,1.16459629]
[1721919723662,0.23296,171.71,171.68,1.16459182]
[1721919723865,0.23296,171.71,171.68,14.5614]
[1721919724064,0.23296,171.71,171.7,5.8241]
[1721919724366,0.23296,171.71,171.69,5.8243]
[1721919724568,0.23296,171.71,171.68,14.5614]
[1721919724756,0.23296,171.71,171.69,5.8241]
[1721919724960,0.23296,171.71,171.7,5.8241]
[1721919725362,0.23296,171.71,171.69,5.8243]
[1721919725787,0.23296,171.71,171.68,14.5614]
[1721919726084,0.23296,171.71,171.67,5.8248]
[1721919726771,0.23296,171.71,171.66,14.563]
[1721919726772,0.23296,171.71,171.69,5.8243]
[1721919727863,0.23296,171.71,171.69,14.561]
[1721919728385,0.23296,171.71,171.69,20.3852]
[1721919728591,0.23296,171.71,171.7,5.8241]
[1721919728788,0.23296,171.71,171.7,6.98878909]
[1721919729083,0.23296,171.71,171.66,14.5635]
[1721919729790,0.23296,171.71,171.7,5.8241]
[1721919730189,0.23296,171.71,171.7,6.98871504]
[1721919730567,0.23296,171.71,171.7,5.8241]
[1721919732088,0.23296,171.71,171.69,5.8244]
[1721919732400,0.23296,171.71,171.69,5.8243]
[1721919732577,0.23296,171.71,171.68,20.3859]
[1721919732780,0.23296,171.71,171.7,5.8241]
[1721919733198,0.23296,171.71,171.68,20.3856]
[1721919733389,0.23296,171.71,171.69,5.8243]
[1721919733783,0.23296,171.71,171.69,6.9890257]
[1721919734295,0.23296,171.71,171.69,5.8243]
[1721919734690,6.05676,171.71,171.65,5.8257]
[1721919734999,45.0,171.7,171.64,14.5651]
[1721919735202,0.23296,171.71,171.64,14.5651]
[1721919735395,0.23296,171.71,171.64,20.3912]
[1721919735705,0.23296,171.71,171.66,5.8254]
[1721919735911,6.05676,171.71,171.64,20.3909]
[1721919736113,45.0,171.7,171.62,5.8265]
[1721919736289,5.8248,171.68,171.62,5.8267]
[1721919736484,45.0,171.67,171.62,5.8267]
[1721919736703,0.23296,171.71,171.61,14.5678]
[1721919737203,5.8241,171.7,171.64,5.8261]
[1721919737410,45.0,171.69,171.61,14.5678]
[1721919737711,0.23296,171.71,171.65,5.8254]
[1721919737889,0.23296,171.71,171.61,1.16514356]
[1721919738086,5.8244,171.7,171.6,29.1367]
[1721919738292,0.23296,171.71,171.63,5.8261]
[1721919738496,29.58296,171.71,171.62,14.567]
[1721919738783,5.8251,171.67,171.6,5.8274]
[1721919739006,50.8255,171.66,171.59,5.8277]
[1721919739186,50.8255,171.66,171.58,14.5699]
[1721919739187,5.8259,171.65,171.58,20.3979]
[1721919739386,45.0,171.64,171.55,14.5727]
[1721919739690,50.8261,171.64,171.57,5.8283]
[1721919739895,45.0,171.64,171.55,20.4017]
[1721919740203,45.0,171.64,171.55,14.5727]
[1721919740381,45.0,171.64,171.57,5.8284]
[1721919740581,5.8265,171.63,171.56,5.8288]
[1721919740783,45.0,171.62,171.56,5.8288]
[1721919740980,45.0,171.62,171.55,14.5727]
[1721919740981,5.8272,171.61,171.55,14.5727]
[1721919741186,45.0,171.6,171.55,20.4018]
[1721919741486,45.0,171.62,171.55,14.5727]
[1721919741786,5.8278,171.59,171.52,20.4054]
[1721919741996,5.8273,171.61,171.55,5.8291]
[1721919742196,45.0,171.63,171.55,5.8291]
[1721919742197,45.0,171.6,171.55,5.8291]
[1721919742399,5.8272,171.61,171.54,5.8295]
[1721919742607,45.0,171.6,171.54,5.8295]
[1721919742811,45.0,171.6,171.52,14.5754]
[1721919743111,50.8267,171.63,171.57,5.8283]
[1721919743309,45.0,171.63,171.54,14.5732]
[1721919743513,50.8265,171.63,171.56,5.8285]
[1721919743893,5.8268,171.62,171.56,5.8285]
[1721919744107,45.0,171.63,171.56,5.8285]
[1721919744108,50.8265,171.63,171.56,5.8285]
[1721919744295,15.549,171.65,171.56,14.5715]
[1721919744515,11.8921,171.68,171.61,5.8271]
[1721919744720,5.8241,171.7,171.61,1.16517175]
[1721919744890,21.6792,171.73,171.61,1.16517175]
[1721919745093,15.6121,171.73,171.68,14.5615]
[1721919745292,21.4352,171.73,171.61,1.16517175]
[1721919745506,5.8234,171.72,171.66,5.8254]
[1721919745823,21.4352,171.73,171.65,14.5642]
[1721919745987,15.6121,171.73,171.67,20.3868]
[1721919746193,16.3622,171.77,171.69,14.5604]
[1721919746415,16.3622,171.77,171.63,1.16475189]
[1721919746416,16.3622,171.77,171.67,5.8248]
[1721919746615,5.8231,171.73,171.65,20.3895]
[1721919746833,5.8213,171.79,171.7,5.8241]
[1721919746996,6.1879,171.82,171.7,6.98861284]
[1721919746997,35.5379,171.82,171.7,6.98861284]
[1721919747202,6.6184949,171.83,171.7,6.98861284]
[1721919747420,6.6184949,171.83,171.7,26.98861284]
[1721919747823,0.7987949,171.83,171.7,26.98861284]
[1721919748522,5.8204,171.81,171.7,26.98861284]
[1721919749219,5.8203,171.81,171.7,26.98861284]
[1721919749423,5.8203,171.81,171.7,6.98861284]
[1721919750015,8.26457404,171.82,171.7,6.98861284]
[1721919750206,2.44457404,171.82,171.7,6.98861284]
[1721919751017,2.44457404,171.82,171.7,26.98861284]
[1721919751920,0.7987949,171.83,171.7,33.50551284]
[1721919752621,2.50419184,171.85,171.76,5.8219]
[1721919752801,22.5501,171.86,171.75,14.5557]
[1721919753304,45.0,171.85,171.75,14.5557]
[1721919754225,5.8197,171.83,171.75,14.5557]
[1721919754422,45.0,171.82,171.74,5.8226]
[1721919754630,45.0,171.85,171.74,5.8226]
[1721919754830,5.8201,171.82,171.75,5.8224]
[1721919755011,50.8204,171.81,171.74,14.5561]
[1721919755329,45.0,171.8,171.71,1.16427911]
[1721919755525,5.8204,171.81,171.74,5.8224]
[1721919755833,45.0,171.8,171.75,5.8224]
[1721919756328,45.0,171.8,171.74,5.8226]
[1721919756518,50.8207,171.8,171.74,5.8226]
[1721919756709,45.0,171.8,171.75,5.8223]
[1721919756910,50.8208,171.8,171.73,20.3804]
[1721919758031,50.8208,171.8,171.74,5.8227]
[1721919758431,45.0,171.8,171.73,14.5577]
[1721919758728,45.0,171.81,171.76,5.822]
[1721919758929,45.0,171.81,171.75,20.3778]
[1721919759721,45.0,171.81,171.76,5.822]
[1721919760122,45.0,171.81,171.75,20.3778]
[1721919760540,45.0,171.81,171.76,5.822]
[1721919760739,45.0,171.81,171.77,5.8216]
[1721919761125,45.0,171.82,171.75,20.3778]
[1721919761321,45.0,171.82,171.75,14.5555]
[1721919761637,5.8193,171.85,171.78,5.8212]
[1721919761937,5.8194,171.84,171.78,5.8212]
[1721919762139,25.00982283,171.86,171.76,5.822]
[1721919762325,25.00982283,171.86,171.71,1.16428917]
[1721919762519,5.8191,171.85,171.78,5.8211]
[1721919762741,25.00982283,171.86,171.79,5.8209]
[1721919763110,25.00982283,171.86,171.78,20.3743]
[1721919763111,5.8193,171.85,171.78,20.3743]
[1721919763512,5.8194,171.84,171.78,20.3743]
[1721919764040,5.819,171.85,171.79,5.8209]
[1721919764619,45.0,171.84,171.78,14.553]
[1721919764825,16.3622,171.86,171.78,14.553]
[1721919764826,1.01347638,171.92,171.79,27.16857438]
[1721919765039,16.5021,171.94,171.8,1.16357908]
[1721919765236,16.5021,171.94,171.88,5.8179]
[1721919765538,16.5021,171.94,171.87,14.5453]
[1721919766040,18.98743666,171.94,171.87,14.5453]
[1721919766241,18.98743666,171.94,171.82,29.0993]
[1721919766441,18.98743666,171.94,171.85,5.8189]
[1721919766442,5.8169,171.92,171.85,5.8189]
[1721919766748,5.8169,171.92,171.86,5.8185]
[1721919766921,5.8164,171.93,171.86,5.8185]
[1721919767124,5.8169,171.92,171.85,5.819]
[1721919767840,2.48533666,171.94,171.86,14.5459]
[1721919768033,33.0,171.97,171.88,14.5443]
[1721919768241,5.8153,171.96,171.88,14.5443]
[1721919768423,35.1053,171.96,171.89,5.8175]
[1721919768622,5.8156,171.95,171.89,5.8175]
[1721919769055,29.29,171.96,171.91,14.542]
[1721919769229,2.39683829,171.97,171.91,20.3589]
[1721919769541,5.8151,171.97,171.91,14.542]
[1721919769752,20.8383,171.98,171.91,20.3588]
[1721919769926,15.0237,171.98,171.91,14.542]
[1721919770238,5.8153,171.96,171.89,5.8173]
[1721919770451,5.8157,171.95,171.89,5.8176]
[1721919770754,5.8153,171.96,171.9,5.8172]
[1721919771146,45.0,171.95,171.9,5.8172]
[1721919771448,17.47624783,171.98,171.84,17.56996261]
[1721919771449,2.45254783,171.98,171.93,5.8163]
[1721919771662,5.8143,171.99,171.91,20.7423]
[1721919771838,0.7987949,172.0,171.91,26.5592]
[1721919772035,3.24478187,172.0,171.91,20.3592]
[1721919772349,29.29,171.98,171.88,14.5446]
[1721919772557,5.8167,171.92,171.86,5.8184]
[1721919772755,45.0,171.91,171.86,5.8184]
[1721919772930,50.817,171.91,171.85,20.3662]
[1721919773126,45.0,171.91,171.86,5.8185]
[1721919773363,45.0,171.92,171.87,5.8182]
[1721919773661,45.0,171.93,171.86,5.8184]
[1721919773857,5.8169,171.92,171.85,20.3659]
[1721919774050,45.0,171.91,171.86,5.8184]
[1721919774356,45.0,171.92,171.88,5.8177]
[1721919774536,50.8165,171.93,171.87,14.5451]
[1721919775063,45.0,171.93,171.88,5.8178]
[1721919775242,45.0,171.93,171.87,14.5451]
[1721919775449,5.8164,171.93,171.87,14.5451]
[1721919775644,50.8167,171.92,171.87,14.5451]
[1721919775844,5.8167,171.92,171.87,14.5451]
[1721919776058,5.8167,171.92,171.85,5.8189]
[1721919776246,45.0,171.91,171.86,5.8186]
[1721919776456,5.816,171.94,171.88,14.545]
[1721919776653,14.5379,171.97,171.85,14.5472]
[1721919776849,2.04346332,171.98,171.89,5.8173]
[1721919777048,2.04346332,171.98,171.89,14.5435]
[1721919777250,2.04346332,171.98,171.88,5.818]
[1721919777568,5.8164,171.93,171.87,5.8182]
[1721919777860,2.04346332,171.98,171.9,5.8173]
[1721919778066,16.0549949,172.0,171.92,14.5412]
[1721919778270,16.0549949,172.0,171.83,35.745]
[1721919778470,16.0549949,172.0,171.89,14.5439]
[1721919778471,34.99346332,171.99,171.89,14.5439]
[1721919778771,49.52966332,171.99,171.87,5.818]
[1721919778957,49.52966332,171.99,171.86,14.5463]
[1721919778958,5.8163,171.93,171.86,14.5463]
[1721919779162,5.8163,171.93,171.87,1.16351571]
[1721919779464,5.8166,171.92,171.87,1.16351571]
[1721919779768,14.5383,171.96,171.87,1.16351571]
[1721919779945,5.8166,171.92,171.87,1.16351571]
[1721919780342,45.0,171.91,171.84,5.8191]
[1721919780552,5.817,171.91,171.85,5.8189]
[1721919780763,5.8186,171.87,171.8,36.2599]
[1721919780964,5.8187,171.86,171.8,30.4392]
[1721919781155,5.819,171.85,171.78,11.8773]
[1721919781358,49.5989,171.91,171.81,5.8202]
[1721919781696,49.5989,171.91,171.78,15.71672113]
[1721919781697,45.0,171.9,171.82,1.16379723]
[1721919781878,5.8177,171.89,171.82,5.8199]
[1721919782077,45.0,171.88,171.81,15.71457761]
[1721919782371,45.0,171.9,171.85,5.819]
[1721919782779,5.8169,171.92,171.85,5.819]
[1721919783083,16.1908,171.95,171.83,14.5484]
[1721919783254,14.5408,171.93,171.83,14.5484]
[1721919783459,24.65751362,171.95,171.83,14.5484]
[1721919783770,18.60381775,171.95,171.85,14.5468]
[1721919784148,45.0,171.94,171.85,20.3657]
[1721919784350,50.8163,171.94,171.85,14.5468]
[1721919784555,45.0,171.94,171.85,20.3655]
[1721919784861,5.8166,171.92,171.85,20.3655]
[1721919785069,45.0,171.91,171.86,5.8186]
[1721919785248,45.0,171.91,171.83,6.1243]
[1721919785249,18.60381775,171.95,171.88,14.545]
[1721919785450,2.41301775,171.95,171.85,15.2124]
[1721919785653,5.8156,171.96,171.85,15.2124]
[1721919785875,35.40384633,171.98,171.88,5.8178]
[1721919786064,2.45384633,171.98,171.9,14.5431]
[1721919786273,23.62896332,171.99,171.9,14.5431]
[1721919786553,5.8146,171.98,171.91,5.8169]
[1721919786770,5.815,171.97,171.9,20.3604]
[1721919786970,5.8153,171.96,171.9,14.5431]
[1721919787160,5.8156,171.95,171.89,5.8176]
[1721919787776,20.29567948,171.99,171.9,5.8171]
[1721919787977,5.8149,171.97,171.9,5.8171]
[1721919788275,45.0,171.96,171.9,5.8171]
[1721919788471,50.8153,171.96,171.89,5.8176]
[1721919789361,50.8153,171.96,171.87,14.5456]
[1721919789362,45.0,171.96,171.87,14.5456]
[1721919789659,5.8164,171.93,171.87,14.5456]
[1721919789876,32.95,171.98,171.83,6.1243]
[1721919789877,45.0,171.92,171.84,14.5482]
[1721919790061,5.818,171.88,171.81,20.3711]
[1721919790264,45.0,171.87,171.81,5.8203]
[1721919790584,45.0,171.87,171.77,14.5538]
[1721919790883,45.0,171.87,171.76,29.1092]
[1721919790884,5.8184,171.87,171.79,14.5518]
[1721919791060,45.0,171.86,171.79,14.5518]
[1721919791259,45.0,171.86,171.81,5.8203]
[1721919791662,45.0,171.86,171.79,14.5518]
[1721919791866,50.8187,171.86,171.79,20.3728]
[1721919792063,45.0,171.86,171.79,14.5518]
[1721919792264,45.0,171.86,171.79,20.3728]
[1721919792265,50.8188,171.86,171.79,20.3728]
[1721919792468,50.8188,171.86,171.76,20.3766]
[1721919792469,45.0,171.86,171.76,20.3766]
[1721919792671,45.0,171.86,171.75,6.0539]
[1721919792884,5.8197,171.83,171.76,6.98621887]
[1721919793187,50.8201,171.82,171.75,11.8759]
[1721919793379,45.0,171.81,171.75,6.0539]
[1721919793560,45.0,171.81,171.75,11.876]
[1721919793979,45.0,171.81,171.74,14.5561]
[1721919794161,45.0,171.81,171.71,6.6241]
[1721919794362,5.823,171.74,171.67,21.1861]
[1721919794568,45.0,171.73,171.67,6.6241]
[1721919794785,5.8227,171.75,171.62,6.183]
[1721919794991,45.0,171.74,171.66,14.5634]
[1721919795358,5.8239,171.71,171.63,5.8263]
[1721919795562,50.8241,171.7,171.63,5.8262]
[1721919795759,50.8241,171.7,171.62,20.7498]
[1721919795760,5.8241,171.7,171.62,20.7498]
[1721919795966,45.0,171.69,171.62,20.7498]
[1721919796397,5.8252,171.67,171.62,6.183]
[1721919796563,45.0,171.66,171.59,14.5695]
[1721919796760,45.0,171.69,171.57,6.2505]
[1721919796961,5.8255,171.66,171.59,5.8277]
[1721919797292,5.8248,171.68,171.6,5.8272]
[1721919797500,45.0,171.65,171.61,14.5678]
[1721919797788,2.44377201,171.69,171.61,14.5678]
[1721919797987,32.95,171.73,171.61,14.5678]
[1721919798592,32.95,171.73,171.62,5.8268]
[1721919798887,32.95,171.73,171.61,14.5678]
[1721919798888,5.8248,171.68,171.61,20.3949]
[1721919799285,45.0,171.67,171.62,5.8267]